bitfinex-derivatives/quotes_ETHF0:USTF0_20251021
["timestamp","ask_amount","ask_price","bid_price","bid_amount"]
[1761075611703,1.67908289,4006.1,4006.0,2.57354]
[1761075612001,2.42428289,4006.1,4006.0,2.1244]
[1761075613696,1.0627,4006.0,4005.9,5.441]
[1761075613900,1.8334,4005.9,4005.8,0.53068991]
[1761075614100,2.42386171,4005.9,4005.8,0.53068991]
[1761075614488,2.42386171,4005.9,4005.8,0.00188991]
[1761075614691,2.42386171,4005.9,4005.8,0.53068991]
[1761075614899,2.42386171,4005.9,4005.8,1.31628991]
[1761075615098,2.42386171,4005.9,4005.8,1.83218991]
[1761075615299,1.67866171,4005.9,4005.8,2.28134991]
[1761075615893,1.67866171,4005.9,4005.8,1.83218991]
[1761075616297,1.67866171,4005.9,4005.8,2.28134991]
[1761075617605,1.67866171,4005.9,4005.8,1.83218991]
[1761075617802,2.42386171,4005.9,4005.8,1.83218991]
[1761075618302,2.42386171,4005.9,4005.8,0.53068991]
[1761075618505,2.42386171,4005.9,4005.8,0.00188991]
[1761075620204,2.42386171,4005.9,4005.8,0.48288991]
[1761075620399,2.42386171,4005.9,4005.8,2.08244991]
[1761075622310,0.59046171,4005.9,4005.8,2.08244991]
[1761075622700,1.06806171,4005.9,4005.8,2.08244991]
[1761075623604,0.59046171,4005.9,4005.8,2.08244991]
[1761075624215,1.06806171,4005.9,4005.8,2.08244991]
[1761075624403,2.23506171,4005.9,4005.8,0.00188991]
[1761075624601,1.1671,4005.1,4005.0,0.4595]
[1761075624916,1.1671,4005.1,4005.0,1.132]
[1761075624917,5.89210171,4005.1,4005.0,1.132]
[1761075625114,5.89210171,4005.1,4005.0,0.4595]
[1761075625607,5.89533364,4005.1,4005.0,0.46237541]
[1761075626806,5.89533364,4005.1,4005.0,0.00287541]
[1761075627309,5.44609364,4005.1,4005.0,0.00287541]
[1761075627506,2.23829364,4005.1,4005.0,0.46237541]
[1761075627702,5.44609364,4005.1,4005.0,0.46237541]
[1761075628405,5.44609364,4005.1,4005.0,1.13487541]
[1761075628710,1.07129364,4005.1,4005.0,2.33292541]
[1761075628900,0.59369364,4005.1,4005.0,2.33292541]
[1761075629498,0.59369364,4005.1,4005.0,7.33292541]
[1761075629704,3.2078,4005.6,4005.5,2.33]
[1761075629903,0.59161157,4005.6,4005.5,2.33]
[1761075630610,0.5935351,4005.6,4005.5,2.33]
[1761075633609,0.5935351,4005.6,4005.5,7.33]
[1761075633813,0.5935351,4005.6,4005.2,4.33087]
[1761075633814,0.9551,4005.3,4005.2,1.132]
[1761075634009,2.23621157,4005.3,4005.2,1.5981]
[1761075634715,0.59161157,4005.3,4005.2,2.04733]
[1761075634914,3.20972353,4005.6,4005.5,2.33]
[1761075635117,3.80143771,4005.6,4005.5,2.33]
[1761075635419,1.07123771,4005.6,4005.5,2.33]
[1761075635611,0.59363771,4005.6,4005.5,2.33]
[1761075637024,1.07123771,4005.6,4005.5,2.33]
[1761075637217,2.23823771,4005.6,4005.5,1.8808]
[1761075637716,2.68741771,4005.6,4005.5,0.4595]
[1761075637919,1.9357,4005.5,4005.4,8.957]
[1761075638119,2.52741418,4005.5,4005.4,9.4165]
[1761075638819,2.52741418,4005.5,4005.4,10.089]
[1761075639318,2.52741418,4005.5,4005.0,8.95787541]
[1761075639319,1.6446,4005.1,4005.0,8.95787541]
[1761075639511,5.89335418,4005.1,4005.0,8.95787541]
[1761075640014,4.96661418,4005.1,4005.0,10.55597541]
[1761075640205,4.96661418,4005.1,4005.0,10.83867541]
[1761075640409,1.06931418,4005.1,4005.0,10.83867541]
[1761075640809,2.23631418,4005.1,4005.0,10.83867541]
[1761075642521,5.44411418,4005.1,4005.0,10.83867541]
[1761075643417,5.89335418,4005.1,4005.0,8.95787541]
[1761075643624,5.89335418,4005.1,4005.0,0.00287541]
[1761075645016,5.44411418,4005.1,4005.0,0.00287541]
[1761075645521,5.89335418,4005.1,4005.0,0.00287541]
[1761075645918,5.89335418,4005.1,4003.7,1.1235]
[1761075645919,0.6895,4004.1,4003.9,1.132]
[1761075646123,1.6446,4003.8,4003.7,1.132]
[1761075646324,1.1389,4003.7,4003.4,3.2078]
[1761075646527,1.9357,4003.5,4003.4,3.2078]
[1761075646818,2.52676091,4003.5,4003.4,1.13479459]
[1761075647019,2.23566091,4003.5,4003.4,1.13479459]
[1761075647219,1.6446,4003.5,4003.4,1.13479459]
[1761075647823,2.23401713,4003.5,4003.4,1.13479459]
[1761075648013,2.52511713,4003.5,4003.4,0.00279459]
[1761075649915,2.23401713,4003.5,4003.4,1.13479459]
[1761075650115,1.6446,4003.5,4003.4,1.13479459]
[1761075652713,3.6899,4003.6,4003.5,0.6267]
[1761075652918,4.7275,4003.6,4003.5,1.0761]
[1761075653120,4.118,4003.6,4003.5,1.7558]
[1761075653427,3.6899,4003.6,4003.5,1.7558]
[1761075653622,4.2994,4003.6,4003.5,1.7558]
[1761075653926,3.6899,4003.6,4003.5,1.7558]
[1761075654316,4.7275,4003.6,4003.5,1.7558]
[1761075657017,4.7275,4003.6,4003.5,1.4986]
[1761075657727,4.7275,4003.6,4003.5,2.20522]
[1761075657929,4.7275,4003.6,4003.5,1.7558]
[1761075658230,4.7275,4003.6,4003.5,1.4986]
[1761075660329,4.7275,4003.6,4003.5,1.94802]
[1761075660531,4.7275,4003.6,4003.5,1.4986]
[1761075661025,4.7275,4003.6,4003.5,1.94802]
[1761075661225,3.2078,4003.6,4003.5,2.20522]
[1761075662726,3.6899,4004.1,4004.0,1.7558]
[1761075663023,4.7275,4004.1,4004.0,1.4986]
[1761075663921,5.31545781,4004.1,4004.0,1.4986]
[1761075664122,4.7275,4004.1,4004.0,1.4986]
[1761075665126,5.31565515,4004.1,4004.0,1.4986]
[1761075665527,4.118,4004.1,4004.0,2.20516]
[1761075665827,3.2078,4004.1,4004.0,2.20516]
[1761075666334,4.7275,4004.1,4004.0,1.94796]
[1761075666536,4.7275,4004.1,4004.0,1.4986]
[1761075667530,4.7275,4004.1,4004.0,1.94797]
[1761075668135,4.7275,4004.1,4004.0,1.4986]
[1761075668735,4.118,4004.1,4003.7,1.0761]
[1761075668933,1.5197,4003.8,4003.7,1.0761]
[1761075670031,2.20992,4003.5,4003.4,0.00279459]
[1761075670239,5.55754273,4003.5,4003.4,0.00279459]
[1761075670425,5.55754273,4003.5,4003.4,1.07889459]
[1761075671927,6.00696273,4003.5,4003.4,0.00279459]
[1761075674635,5.31674273,4003.5,4003.4,1.50139459]
[1761075675940,5.55754273,4003.5,4003.4,1.07889459]
[1761075676737,5.31674273,4003.5,4003.4,1.07889459]
[1761075679439,0.89159429,4004.1,4003.9,0.764]
[1761075679634,1.3725,4004.4,4004.3,1.3498]
[1761075680333,0.7765,4004.4,4004.3,1.3498]
[1761075680737,1.3649,4003.9,4003.8,0.9487]
[1761075681041,4.5727,4003.9,4003.8,0.3629]
[1761075681436,1.3649,4003.6,4003.4,0.00279459]
[1761075681639,1.603,4003.5,4003.4,0.00279459]
[1761075683236,2.05242,4003.5,4003.4,0.00279459]
[1761075683438,1.603,4003.5,4003.4,0.00279459]
[1761075684631,2.05242,4003.5,4003.4,0.00279459]
[1761075684943,1.603,4003.5,4003.4,0.00279459]
[1761075685645,1.603,4003.5,4003.4,0.97789459]
[1761075686843,1.603,4003.5,4003.4,0.36569459]
[1761075687233,1.603,4003.5,4003.4,0.97789459]
[1761075687438,1.603,4003.5,4003.4,0.00279459]
[1761075687638,2.05242,4003.5,4003.4,0.00279459]
[1761075688245,4.8108,4003.5,4003.4,0.00279459]
[1761075690741,5.26022,4003.5,4003.4,0.00279459]
[1761075691249,4.8108,4003.5,4003.4,0.00279459]
[1761075691540,5.39885422,4003.5,4003.4,0.00279459]
[1761075691746,5.39885422,4003.5,4003.4,0.97789459]
[1761075693954,3.79585422,4003.5,4003.4,1.81342459]
[1761075695239,4.18205422,4003.5,4003.4,1.81342459]
[1761075696642,4.18205422,4003.5,4003.4,1.36399459]
[1761075698048,4.18205422,4003.5,4003.4,1.81342459]
[1761075698442,5.16075422,4003.5,4003.4,1.81342459]
[1761075700047,5.39885422,4003.5,4003.4,0.00279459]
[1761075700446,5.84827422,4003.5,4003.4,0.00279459]
[1761075701247,1.3649,4002.9,4002.8,0.02498251]
[1761075701453,1.95295422,4002.9,4002.8,1.00008251]
[1761075701654,1.95295422,4002.9,4002.8,0.38788251]
[1761075702152,1.95295422,4002.9,4002.8,0.39034916]
[1761075702650,0.97425422,4002.9,4002.8,1.83814916]
[1761075702845,1.57625422,4002.9,4002.8,1.83814916]
[1761075703148,1.95295422,4002.9,4002.8,1.83814916]
[1761075705248,1.35095422,4002.9,4002.8,1.83814916]
[1761075706050,1.95295422,4002.9,4002.8,1.83814916]
[1761075711054,1.35095422,4002.9,4002.8,1.83814916]
[1761075711759,1.86665422,4002.9,4002.8,1.83814916]
[1761075713255,1.86665422,4002.9,4002.8,0.39034916]
[1761075713457,1.86665422,4002.9,4002.8,0.02744916]
[1761075713753,1.86665422,4002.9,4002.8,0.96534916]
[1761075714462,1.86665422,4002.9,4002.8,0.02744916]
[1761075717264,1.86665422,4002.9,4002.8,0.47694916]
[1761075718864,1.86665422,4002.9,4002.8,0.02744916]
[1761075719365,1.86665422,4002.9,4002.8,1.41484916]
[1761075719577,0.58805422,4002.9,4002.8,1.77774916]
[1761075719863,1.2681,4003.1,4003.0,1.95388]
[1761075720063,1.85560582,4003.1,4003.0,1.5044]
[1761075720261,1.85560582,4003.1,4003.0,0.3833]
[1761075720464,1.2681,4002.9,4002.8,0.02744916]
[1761075720663,1.85560582,4002.9,4002.8,0.02744916]
[1761075721664,1.85560582,4002.9,4002.8,1.41484916]
[1761075722958,2.30509582,4002.9,4002.8,0.02744916]
[1761075723270,0.8673,4001.3,4001.2,1.00427]
[1761075723466,1.2681,4001.3,4001.2,1.75048]
[1761075723665,1.2681,4001.3,4001.2,1.3008]
[1761075723969,1.2681,4000.6,4000.5,1.3008]
[1761075724168,0.00289879,4000.6,4000.5,1.50716595]
[1761075724765,0.00289879,4000.6,4000.5,1.70456237]
[1761075725759,0.00289879,4000.6,4000.5,1.50716595]
[1761075725760,3.61149879,4000.6,4000.5,1.50716595]
[1761075725961,1.2681,3999.9,3999.8,0.9379]
[1761075726171,1.2681,3999.9,3999.8,1.3008]
[1761075726357,3.2078,4000.0,3999.3,8.928]
[1761075726358,0.3516,3999.7,3999.6,0.5546]
[1761075726562,1.2681,3999.7,3999.6,0.9379]
[1761075726764,0.7524,3999.7,3999.3,10.0438535]
[1761075726967,1.2681,3999.5,3999.4,0.9379]
[1761075727164,0.5157,3999.4,3999.3,8.93121575]
[1761075727365,1.2681,3999.4,3999.3,8.93121575]
[1761075727965,1.2681,3999.4,3999.3,9.31451575]
[1761075728164,0.5157,3999.9,3999.6,0.44986]
[1761075728363,0.4008,3999.9,3999.8,1.3008]
[1761075728972,0.7524,3999.9,3999.8,1.75064]
[1761075729274,1.2681,3999.9,3999.8,1.3008]
[1761075729972,1.2681,3999.9,3999.8,0.9379]
[1761075730271,1.2681,3999.9,3999.8,0.3833]
[1761075730667,0.7524,3999.9,3999.8,1.3008]
[1761075730974,1.2681,3999.9,3999.8,1.3008]
[1761075731169,0.7524,4000.3,4000.2,1.3008]
[1761075731368,0.4008,4000.3,4000.2,1.3008]
[1761075732065,1.2681,4000.3,4000.2,1.3008]
[1761075732262,1.2681,4000.3,4000.2,0.3833]
[1761075733077,1.2681,4000.3,4000.2,1.3008]
[1761075733373,0.7524,4000.3,4000.2,1.3008]
[1761075733776,1.2681,4000.3,4000.2,1.3008]
[1761075738176,0.00289879,4000.6,4000.5,1.95416]
[1761075738373,0.00289879,4000.6,4000.5,10.88516]
[1761075739072,0.00289879,4000.6,4000.5,15.88516]
[1761075741183,3.5297,4001.4,4001.3,1.0976]
[1761075741382,3.5297,4001.4,4001.3,10.0286]
[1761075742185,3.21044457,4001.4,4001.3,10.47827]
[1761075743083,3.53234457,4001.4,4001.3,10.47827]
[1761075744178,3.21044457,4001.4,4001.3,10.47827]
[1761075745670,4.32434457,4001.4,4001.3,10.47827]
[1761075746077,3.53234457,4001.4,4001.3,10.47827]
[1761075747681,3.53234457,4001.4,4001.3,10.0286]
[1761075748077,3.53234457,4001.4,4001.3,10.47827]
[1761075748477,0.4865,4001.3,4001.1,0.4597]
[1761075748671,0.4865,4001.3,4001.0,0.8313]
[1761075748672,0.4865,4001.1,4000.9,0.4597]
[1761075748876,1.1139,4000.7,4000.6,0.84005252]
[1761075749184,1.1139,4000.7,4000.6,8.31780252]
[1761075749377,1.1139,4000.7,4000.6,8.77750252]
[1761075749573,1.1139,4000.7,4000.6,8.1256]
[1761075750084,1.1139,4000.7,4000.6,8.57535]
[1761075750484,1.1139,4000.7,4000.6,8.1256]
[1761075750878,1.1139,4000.7,4000.6,1.0976]
[1761075751081,1.1139,4000.7,4000.6,10.0276]
[1761075751381,1.1139,4000.7,4000.6,9.2402]
[1761075752878,1.1139,4000.7,4000.6,9.6999]
[1761075754689,0.8084,4000.7,4000.6,10.0276]
[1761075754884,1.1139,4000.7,4000.6,10.0276]
[1761075755087,1.1139,4000.7,4000.6,1.0976]
[1761075755387,1.1139,4000.4,4000.3,1.54738]
[1761075755578,4.3217,4000.4,4000.3,6.76538]
[1761075757382,4.3217,4000.4,4000.3,1.0976]
[1761075757584,0.792,4000.1,3999.8,0.4597]
[1761075757888,1.1139,3999.9,3999.8,0.7699]
[1761075758088,1.1139,3999.9,3999.8,10.47644]
[1761075758284,1.1139,3999.9,3999.8,10.0266]
[1761075759891,1.8627,3999.9,3999.8,10.47644]
[1761075760093,1.2353,3999.9,3999.8,10.47644]
[1761075764889,0.89218942,4001.2,4001.1,0.44969]
[1761075765092,0.00264457,4001.4,4001.3,1.54727]
[1761075765590,1.1139,4002.5,4002.2,0.6379]
[1761075765795,3.2078,4002.7,4002.6,1.0976]
[1761075765988,3.79423585,4002.7,4002.6,1.0976]
[1761075766386,0.58643585,4002.7,4002.6,4.3054]
[1761075766680,0.8084,4002.9,4002.8,1.0976]
[1761075766892,1.7029328,4002.9,4002.8,10.0266]
[1761075767396,0.0029069,4002.9,4002.8,10.0266]
[1761075767892,0.0029069,4002.9,4002.8,10.2232346]
[1761075771094,1.3285,4003.3,4002.8,10.2232346]
[1761075771095,0.842,4003.3,4002.8,14.7635346]
[1761075771300,0.842,4003.3,4003.2,1.68196]
[1761075771589,3.2078,4003.8,4003.2,10.60896]
[1761075771794,3.2078,4003.8,4003.7,1.6819]
[1761075771997,3.2078,4003.8,4003.7,10.1595]
[1761075772189,3.21032008,4003.8,4003.7,10.6089]
[1761075772385,3.21032008,4003.8,4003.7,10.1595]
[1761075772689,3.52412008,4003.8,4003.7,10.1595]
[1761075773692,4.06872008,4003.8,4003.7,10.1595]
[1761075774296,3.21032008,4003.8,4003.7,10.1595]
[1761075774698,3.52412008,4003.8,4003.7,10.1595]
[1761075774999,3.21032008,4003.8,4003.7,10.1595]
[1761075775398,4.41332008,4003.8,4003.7,10.1595]
[1761075779396,3.21032008,4003.8,4003.7,10.1595]
[1761075780098,0.00252008,4003.8,4003.7,10.1595]
[1761075780302,0.86092008,4003.8,4003.7,10.1595]
[1761075780797,1.20552008,4003.8,4003.4,0.545]
[1761075780996,1.203,4003.2,4003.1,1.2325]
[1761075781207,0.8584,4003.4,4003.3,1.2325]
[1761075781996,1.203,4003.4,4003.3,1.2325]
[1761075782692,1.203,4003.4,4003.3,1.68195]
[1761075785498,1.203,4003.4,4003.3,1.2325]
[1761075785805,1.203,4003.4,4003.3,0.3288]
[1761075785999,1.203,4003.4,4003.1,5.69347]
[1761075786000,0.5446,4003.3,4003.1,5.5728]
[1761075786205,1.203,4003.2,4003.1,6.1178]
[1761075787404,1.203,4003.2,4003.1,6.92597]
[1761075787702,1.203,4003.2,4003.1,10.60297]
[1761075788604,1.203,4003.2,4003.1,10.1535]
[1761075790796,1.203,4003.2,4003.0,3.2078]
[1761075790797,0.5446,4003.1,4003.0,3.5366]
[1761075791106,1.203,4003.1,4003.0,13.3613]
[1761075791509,1.203,4003.1,4003.0,10.1535]
[1761075792007,0.8584,4003.1,4003.0,10.82679]
[1761075793108,0.5446,4003.4,4003.1,0.44948]
[1761075793312,1.203,4003.4,4003.3,1.2325]
[1761075793506,1.78721991,4003.4,4003.3,1.2325]
[1761075795309,2.67940933,4003.4,4003.3,1.2325]
[1761075798202,1.78721991,4003.4,4003.3,1.2325]
[1761075798399,2.68086908,4003.4,4003.3,1.2325]
[1761075799308,1.78721991,4003.4,4003.3,1.2325]
[1761075799512,0.44946,4003.3,4003.0,8.921]
[1761075799808,1.61522,4002.7,4002.6,0.00247661]
[1761075800015,2.19943991,4002.7,4002.6,0.00247661]
[1761075800314,3.09234809,4002.7,4002.6,0.00247661]
[1761075800513,0.2038,4002.0,4001.6,1.1296]
[1761075800805,0.2038,4002.0,4000.0,0.1979]
[1761075800806,1.1397,4001.4,4001.3,7.5285]
[1761075801009,1.72391991,4001.4,4001.3,7.5285]
[1761075801603,1.72391991,4001.4,4001.3,7.5304695]
[1761075801800,1.72391991,4001.4,4001.3,0.0019695]
[1761075802805,1.72391991,4001.4,4001.3,0.3159695]
[1761075803005,1.72391991,4001.4,4001.3,0.8208695]
[1761075803804,0.58421991,4001.4,4001.3,10.0694695]
[1761075804005,1.1397,4001.7,4001.6,1.1475]
[1761075804311,1.1397,4001.6,4001.5,1.1475]
[1761075804512,1.72356296,4001.6,4001.5,1.1475]
[1761075805305,1.1397,4001.6,4001.5,1.1475]
[1761075806211,0.3136,4001.6,4001.5,1.3447]
[1761075806411,0.8432,4001.9,4001.8,1.59712]
[1761075806716,0.8432,4001.9,4001.8,13.72492]
[1761075806916,1.1568,4001.9,4001.8,13.2753]
[1761075807111,0.8432,4001.9,4001.8,13.2753]
[1761075814333,1.9829,4001.9,4001.8,13.2753]
[1761075814529,1.9829,4001.9,4001.8,10.0675]
[1761075814724,1.9829,4001.9,4001.8,0.314]
[1761075814930,1.9829,4001.9,4001.8,9.234]
[1761075817238,1.9829,4001.9,4001.8,10.0675]
[1761075818534,2.56646981,4001.9,4001.8,10.0675]
[1761075819340,3.01607981,4001.9,4001.8,9.234]
[1761075819540,3.01607981,4001.9,4001.8,8.92]
[1761075819734,2.56646981,4001.9,4001.8,8.92]
[1761075820630,2.56646981,4001.9,4001.8,9.234]
[1761075820837,2.56646981,4001.9,4001.8,10.51712]
[1761075822539,2.56646981,4001.9,4001.8,1.1475]
[1761075822740,2.56646981,4001.9,4001.8,1.59712]
[1761075822940,1.9829,4001.9,4001.8,1.59712]
[1761075824540,1.1568,4001.9,4001.8,1.59712]
[1761075826440,1.74151914,4001.9,4001.8,1.59712]
[1761075826831,1.74151914,4001.9,4001.8,1.1475]
[1761075827043,2.23531914,4001.9,4001.8,1.1475]
[1761075828038,1.74151914,4001.9,4001.8,1.59712]
[1761075828439,1.74151914,4001.9,4001.8,1.1475]
[1761075828840,1.42791914,4001.9,4001.8,1.59712]
[1761075829051,1.42791914,4001.9,4001.8,6.59712]
[1761075829243,0.3136,4002.9,4002.7,0.5049]
[1761075829438,4.0152,4003.1,4003.0,1.3447]
[1761075829642,4.60058105,4003.1,4003.0,1.3447]
[1761075830747,4.93288105,4003.1,4003.0,1.1475]
[1761075832647,3.79318105,4003.1,4003.0,1.77738]
[1761075832848,0.58538105,4003.1,4003.0,6.77738]
[1761075833243,3.2078,4003.6,4003.5,1.2608]
[1761075833244,3.5292,4003.6,4003.5,1.2608]
[1761075833549,4.8969929,4003.6,4003.5,1.0804]
[1761075833843,4.8969929,4003.6,4003.3,9.2266]
[1761075833844,0.631,4003.4,4003.3,9.2266]
[1761075834050,1.6891929,4003.4,4003.3,8.918]
[1761075834450,1.6891929,4003.4,4003.3,9.9984]
[1761075837043,1.6891929,4003.4,4003.3,9.5426]
[1761075837851,1.6891929,4003.4,4003.3,9.9984]
[1761075838345,0.5847929,4003.4,4003.3,10.44785]
[1761075838553,0.9061929,4003.4,4003.3,10.44785]
[1761075838947,1.3795929,4003.4,4003.3,10.44785]
[1761075839345,0.9061929,4003.4,4003.3,9.9984]
[1761075839655,1.6891929,4003.4,4003.3,9.9984]
[1761075842158,0.3214,4003.4,4003.3,9.9984]
[1761075842451,1.1044,4003.4,4003.3,8.918]
[1761075842748,1.68756205,4003.4,4003.3,9.2266]
[1761075842952,1.68756205,4003.4,4003.3,9.6824]
[1761075843146,1.68756205,4003.4,4003.3,9.9984]
[1761075846755,0.89276205,4003.4,4003.3,9.9984]
[1761075847757,0.58316205,4003.4,4003.3,9.9984]
[1761075848755,3.2078,4003.6,4003.5,0.1804]
[1761075848959,3.79101928,4003.6,4003.5,1.71023]
[1761075849263,3.2078,4003.6,4003.5,1.71023]
[1761075850152,3.2078,4004.7,4004.6,1.0739]
[1761075850348,0.58326701,4004.7,4004.6,9.9869]
[1761075850748,0.58326701,4004.7,4004.6,10.4427]
[1761075850950,3.2078,4005.2,4004.9,0.44927]
[1761075851148,3.21045854,4005.2,4005.1,1.0804]
[1761075851359,3.21045854,4005.2,4005.1,1.27786741]
[1761075851748,3.46365854,4005.2,4005.1,1.0804]
[1761075852359,3.71685854,4005.2,4005.1,1.0804]
[1761075853048,3.21045854,4005.2,4005.1,1.0804]
[1761075853455,3.21045854,4005.2,4005.1,9.9924]
[1761075853654,3.46365854,4005.2,4005.1,9.9924]
[1761075854647,0.25585854,4005.2,4005.1,9.9924]
[1761075855162,0.00265854,4005.2,4005.1,9.9924]
[1761075858665,0.00265854,4005.2,4005.1,10.44165]
[1761075860162,0.00265854,4005.2,4005.1,15.44165]
[1761075860861,0.00265854,4005.2,4005.1,10.44165]
[1761075862471,3.2078,4005.5,4005.4,1.46711]
[1761075862760,3.2078,4005.5,4005.4,9.9249]
[1761075863267,3.2078,4005.5,4005.4,10.37411]
[1761075863466,3.21068736,4005.5,4005.4,9.9249]
[1761075864366,3.21068736,4005.5,4005.4,10.37411]
[1761075864669,3.21068736,4005.5,4005.4,9.9249]
[1761075865668,3.21068736,4005.5,4005.4,10.37411]
[1761075866462,3.21068736,4005.5,4005.4,9.9249]
[1761075866861,3.21068736,4005.5,4005.4,10.37411]
[1761075868361,0.00288736,4005.5,4005.4,10.37411]
[1761075874867,0.00288736,4005.5,4005.4,15.37411]
[1761075875067,3.2078,4006.0,4005.9,1.46706]
[1761075875269,3.2078,4006.0,4005.9,10.37106]
[1761075875865,3.2078,4006.0,4005.9,9.9219]
[1761075876069,3.41302964,4006.0,4005.9,9.9219]
[1761075876470,3.86217964,4006.0,4005.9,9.9219]
[1761075876671,4.1983412,4006.0,4005.9,9.9209]
[1761075876875,0.00252964,4006.0,4005.9,9.9209]
[1761075877468,0.00252964,4006.0,4005.9,10.37006]
[1761075878368,0.58597355,4006.0,4005.9,10.37006]
[1761075882573,0.00252964,4006.0,4005.9,10.37006]
[1761075883579,0.89282981,4006.8,4006.7,1.0179]
[1761075883773,0.89282981,4006.8,4006.7,9.9189]
[1761075884276,1.47672261,4006.8,4006.7,9.9189]
[1761075884473,0.5838928,4006.8,4006.7,9.9189]
[1761075884668,0.58662238,4006.8,4006.7,9.9189]
[1761075885274,0.58662238,4006.8,4006.7,15.36797]
[1761075885468,0.00272958,4006.8,4006.7,15.36797]
[1761075885770,0.00272958,4006.8,4006.7,10.36797]
[1761075885974,0.00272958,4006.8,4006.7,10.5695632]
[1761075888575,3.2078,4007.6,4007.5,1.1847]
[1761075888877,3.79033127,4007.6,4007.5,10.0847]
[1761075889273,3.99833127,4007.6,4007.5,10.0847]
[1761075889473,4.00120077,4007.6,4007.5,10.0847]
[1761075890175,3.4186695,4007.6,4007.5,10.0847]
[1761075891279,3.2106695,4007.6,4007.5,10.0847]
[1761075891672,3.9020295,4007.6,4007.5,1.1847]
[1761075891878,3.9020295,4007.6,4007.5,4.9367]
[1761075893080,3.7808295,4007.6,4007.5,4.9367]
[1761075895482,3.9020295,4007.6,4007.5,4.6344]
[1761075895682,4.03481926,4007.6,4007.5,4.8937]
[1761075895887,4.48378926,4007.6,4007.5,4.8937]
[1761075896082,4.48378926,4007.6,4007.5,1.1417]
[1761075898383,3.79241926,4007.6,4007.5,1.1417]
[1761075898585,3.79241926,4007.6,4007.5,1.59068]
[1761075899981,3.79241926,4007.6,4007.5,1.1417]
[1761075900378,4.03481926,4007.6,4007.5,1.1417]
[1761075900978,3.79241926,4007.6,4007.5,1.1417]
[1761075901280,3.79241926,4007.6,4007.5,1.59068]
[1761075901483,0.58461926,4007.6,4007.5,1.59068]
[1761075901679,0.0028695,4007.6,4007.5,6.59068]
[1761075901880,4.10062981,4009.1,4009.0,1.1041]
[1761075902179,3.91437509,4009.1,4009.0,1.1041]
[1761075902386,4.16317509,4009.1,4009.0,0.5665]
[1761075902684,4.16317509,4009.1,4008.9,0.4125]
[1761075902685,0.3729,4009.0,4008.9,0.4125]
[1761075902884,0.95730381,4009.0,4008.9,0.00216713]
[1761075903402,0.3729,4007.9,4007.8,0.4125]
[1761075903577,4.16281046,4007.9,4007.1,1.134]
[1761075903782,0.2482,4007.7,4007.6,0.6908]
[1761075903990,0.83031046,4007.7,4007.6,0.9501]
[1761075904281,0.83031046,4007.7,4007.6,0.95239814]
[1761075905492,0.95501046,4007.7,4007.6,0.41479814]
[1761075906685,0.83031046,4007.7,4007.6,0.69309814]
[1761075908697,0.88973582,4008.3,4007.6,0.69309814]
[1761075908698,3.2078,4008.4,4008.3,0.9501]
[1761075908998,3.7908049,4008.4,4008.3,0.9501]
[1761075909200,4.0390049,4008.4,4008.3,0.9501]
[1761075909787,9.1637049,4008.4,4008.3,0.4125]
[1761075909992,0.2482,4008.2,4007.8,0.4125]
[1761075910193,0.2482,4007.9,4007.8,0.6908]
[1761075910396,0.2482,4008.1,4008.0,0.8448]
[1761075910692,0.83135434,4008.1,4008.0,1.1041]
[1761075910903,0.83135434,4008.1,4008.0,0.5665]
[1761075911086,0.83135434,4008.1,4008.0,0.8448]
[1761075912197,0.83135434,4008.1,4008.0,0.5665]
[1761075912198,0.95605434,4008.1,4008.0,0.5665]
[1761075912696,1.40497434,4008.1,4008.0,0.5665]
[1761075913896,0.69716,4007.8,4007.7,0.4125]
[1761075914095,1.28031434,4007.8,4007.7,0.4125]
[1761075914403,1.40501434,4007.8,4007.7,0.4125]
[1761075915690,0.3729,4007.7,4007.6,0.41479814]
[1761075915896,0.83135434,4007.7,4007.6,0.69309814]
[1761075916401,0.83135434,4007.7,4007.6,0.95239814]
[1761075917702,0.58315434,4007.7,4007.6,1.40137814]
[1761075917897,1.46274582,4008.2,4007.8,0.98656]
[1761075918102,1.58684582,4008.2,4008.1,0.6908]
[1761075918408,2.16771052,4008.2,4008.1,0.6908]
[1761075918609,1.71880052,4008.2,4008.1,0.6908]
[1761075918795,2.16771052,4008.2,4008.1,0.6908]
[1761075919195,1.71880052,4008.2,4008.1,0.6908]
[1761075919397,1.71880052,4008.2,4008.1,0.9234]
[1761075919604,2.16771052,4008.2,4008.1,0.9234]
[1761075920202,1.2779747,4008.2,4008.1,0.9234]
[1761075920501,1.2779747,4008.2,4008.1,0.6908]
[1761075920904,5.37835499,4008.2,4008.1,0.6908]
[1761075921408,5.37835499,4008.2,4008.1,0.9234]
[1761075922001,2.17055499,4008.2,4008.1,0.9234]
[1761075922500,0.0469,4008.0,4007.8,0.3577]
[1761075922808,1.1705047,4007.9,4007.8,0.3577]
[1761075923399,1.1236047,4007.9,4007.8,0.3577]
[1761075924707,0.54277,4007.7,4007.6,0.00229814]
[1761075924899,0.58967,4007.7,4007.6,0.00229814]
[1761075925102,1.1705347,4007.7,4007.6,0.00229814]
[1761075925303,1.1705347,4007.7,4007.6,0.35999814]
[1761075926009,2.06316798,4007.7,4007.6,0.00229814]
[1761075926310,2.01626798,4007.7,4007.6,0.60069814]
[1761075927010,2.06316798,4007.7,4007.6,0.35999814]
[1761075927809,1.1705347,4007.7,4007.6,0.00229814]
[1761075928113,1.39097562,4007.7,4007.6,0.00229814]
[1761075928509,1.39097562,4007.7,4007.0,0.154]
[1761075928510,0.44904,4007.1,4007.0,0.154]
[1761075928713,0.58974,4007.1,4007.0,0.5117]
[1761075928913,1.1706047,4007.1,4007.0,0.5117]
[1761075929310,0.6746647,4007.1,4007.0,0.9854]
[1761075929715,0.6746647,4007.1,4007.0,0.98732975]
[1761075929911,1.1236947,4007.1,4007.0,0.98732975]
[1761075930216,0.6746647,4007.1,4007.0,0.98732975]
[1761075930512,1.1236947,4007.1,4007.0,0.98732975]
[1761075931409,0.6746647,4007.1,4007.0,0.98732975]
[1761075934231,1.1705947,4007.1,4007.0,0.51362975]